[Event "Titled Tuesday Blitz January 03 Late 2023"]
[White "Yashmetov, Mikhail"]
[Black "Pino Perez, Lazaro"]
[WhiteFideId "24198900"]
[BlackFideId "3517055"]
[WhiteElo "2323"]
[BlackElo "2142"]
[Result "1-0"]
[Round "08"]
[TimeControl "180+2"]
[Date "2023.01.03"]
[WhiteClock "0:00:03"]
[BlackClock "0:00:03"]

1. d4 {[%clk 0:03:00]}  d5 {[%clk 0:02:59]} 2. c4 {[%clk 0:03:01]}  e6 {[%clk 0:02:58]} 3. g3 {[%clk 0:03:01]}  Nf6 {[%clk 0:02:56]} 4. Bg2 {[%clk 0:03:02]}  dxc4 {[%clk 0:02:57]} 5. Nf3 {[%clk 0:03:02]}  c5 {[%clk 0:02:51]} 6. O-O {[%clk 0:03:02]}  Nc6 {[%clk 0:02:49]} 7. Ne5 {[%clk 0:03:02]}  Bd7 {[%clk 0:02:45]} 8. Na3 {[%clk 0:03:00]}  cxd4 {[%clk 0:02:41]} 9. Naxc4 {[%clk 0:02:59]}  Be7 {[%clk 0:02:35]} 10. Bf4 {[%clk 0:02:56]}  Rc8 {[%clk 0:02:35]} 11. Qb3 {[%clk 0:02:56]}  Nd5 {[%clk 0:02:16]} 12. Qxb7 {[%clk 0:02:34]}  Nxe5 {[%clk 0:02:14]} 13. Nxe5 {[%clk 0:02:33]}  Rc7 {[%clk 0:02:09]} 14. Qb3 {[%clk 0:02:25]}  Nxf4 {[%clk 0:02:09]} 15. gxf4 {[%clk 0:02:26]}  O-O {[%clk 0:02:07]} 16. Rfd1 {[%clk 0:02:26]}  Qb8 {[%clk 0:02:00]} 17. Qxb8 {[%clk 0:01:49]}  Rxb8 {[%clk 0:02:01]} 18. Rxd4 {[%clk 0:01:49]}  Bb5 {[%clk 0:01:55]} 19. Rd2 {[%clk 0:01:43]}  Bb4 {[%clk 0:01:50]} 20. Rd4 {[%clk 0:01:41]}  Bc5 {[%clk 0:01:50]} 21. Rd2 {[%clk 0:01:40]}  Bb4 {[%clk 0:01:47]} 22. Rd4 {[%clk 0:01:26]}  Bc5 {[%clk 0:01:46]} 23. Rdd1 {[%clk 0:01:27]}  Bxe2 {[%clk 0:01:41]} 24. Rd2 {[%clk 0:01:27]}  Bb5 {[%clk 0:01:33]} 25. Rad1 {[%clk 0:01:21]}  Be7 {[%clk 0:01:33]} 26. b3 {[%clk 0:01:18]}  h5 {[%clk 0:01:29]} 27. Bf3 {[%clk 0:01:09]}  g6 {[%clk 0:01:28]} 28. Be2 {[%clk 0:00:44]}  Be8 {[%clk 0:01:22]} 29. Bc4 {[%clk 0:00:40]}  Kg7 {[%clk 0:01:20]} 30. a4 {[%clk 0:00:34]}  a5 {[%clk 0:01:20]} 31. Nf3 {[%clk 0:00:28]}  Bxa4 {[%clk 0:01:16]} 32. Bxe6 {[%clk 0:00:21]}  Bxb3 {[%clk 0:01:11]} 33. Bxb3 {[%clk 0:00:21]}  Rxb3 {[%clk 0:01:12]} 34. Ne5 {[%clk 0:00:20]}  a4 {[%clk 0:01:01]} 35. Rd7 {[%clk 0:00:20]}  Rbb7 {[%clk 0:00:57]} 36. Rxc7 {[%clk 0:00:15]}  Rxc7 {[%clk 0:00:58]} 37. Rd4 {[%clk 0:00:15]}  a3 {[%clk 0:00:57]} 38. Ra4 {[%clk 0:00:16]}  Rc2 {[%clk 0:00:28]} 39. Kg2 {[%clk 0:00:10]}  Bc5 {[%clk 0:00:26]} 40. Nd3 {[%clk 0:00:04]}  Bf8 {[%clk 0:00:25]} 41. Nb4 {[%clk 0:00:02]}  Rc4 {[%clk 0:00:20]} 42. Rxa3 {[%clk 0:00:03]}  Rxb4 {[%clk 0:00:13]} 43. Rf3 {[%clk 0:00:03]}  Kf6 {[%clk 0:00:11]} 44. f5 {[%clk 0:00:04]}  g5 {[%clk 0:00:11]} 45. Rc3 {[%clk 0:00:03]}  Kxf5 {[%clk 0:00:10]} 46. Rd3 {[%clk 0:00:03]}  Be7 {[%clk 0:00:09]} 47. h3 {[%clk 0:00:04]}  Re4 {[%clk 0:00:08]} 48. Rd5+ {[%clk 0:00:04]}  Kg6 {[%clk 0:00:08]} 49. Rb5 {[%clk 0:00:03]}  Bd6 {[%clk 0:00:07]} 50. Rb6 {[%clk 0:00:04]}  Re6 {[%clk 0:00:07]} 51. Rb5 {[%clk 0:00:04]}  Re5 {[%clk 0:00:06]} 52. Rb6 {[%clk 0:00:04]}  Rd5 {[%clk 0:00:06]} 53. Ra6 {[%clk 0:00:05]}  Kf5 {[%clk 0:00:06]} 54. Rc6 {[%clk 0:00:05]}  Bc5 {[%clk 0:00:06]} 55. Kf1 {[%clk 0:00:02]}  f6 {[%clk 0:00:06]} 56. Ke1 {[%clk 0:00:03]}  Bb4+ {[%clk 0:00:06]} 57. Ke2 {[%clk 0:00:03]}  Bc5 {[%clk 0:00:06]} 58. Ke1 {[%clk 0:00:03]}  Re5+ {[%clk 0:00:06]} 59. Kf1 {[%clk 0:00:03]}  Bd4 {[%clk 0:00:06]} 60. Rc4 {[%clk 0:00:03]}  Bc5 {[%clk 0:00:06]} 61. Rc2 {[%clk 0:00:02]}  Bd6 {[%clk 0:00:05]} 62. Rc4 {[%clk 0:00:03]}  Ke6 {[%clk 0:00:05]} 63. Kg2 {[%clk 0:00:03]}  Rd5 {[%clk 0:00:04]} 64. Ra4 {[%clk 0:00:04]}  Rd2 {[%clk 0:00:03]} 65. Ra6 {[%clk 0:00:03]}  Rc2 {[%clk 0:00:03]} 66. Rb6 {[%clk 0:00:03]} 1-0


[Site "https://www.chess.com"]

[Event "Titled Tuesday Blitz January 03 Late 2023"]
[White "Novikov, Evgenij"]
[Black "Corredor Castellanos, Camilo"]
[WhiteFideId "4125380"]
[BlackFideId "4425871"]
[WhiteElo "2276"]
[BlackElo "1957"]
[Result "1-0"]
[Round "08"]
[TimeControl "180+2"]
[Date "2023.01.03"]
[WhiteClock "0:00:11"]
[BlackClock "0:00:06"]

1. c4 {[%clk 0:02:58]}  e5 {[%clk 0:02:59]} 2. b3 {[%clk 0:02:56]}  Nc6 {[%clk 0:02:57]} 3. Bb2 {[%clk 0:02:57]}  Nf6 {[%clk 0:02:56]} 4. e3 {[%clk 0:02:55]}  d6 {[%clk 0:02:53]} 5. g3 {[%clk 0:02:53]}  g6 {[%clk 0:02:52]} 6. Bg2 {[%clk 0:02:53]}  Bg7 {[%clk 0:02:53]} 7. Ne2 {[%clk 0:02:53]}  O-O {[%clk 0:02:53]} 8. O-O {[%clk 0:02:54]}  a5 {[%clk 0:02:47]} 9. a3 {[%clk 0:02:52]}  Qe7 {[%clk 0:02:43]} 10. Qc2 {[%clk 0:02:52]}  Bf5 {[%clk 0:02:41]} 11. d3 {[%clk 0:02:50]}  Bg4 {[%clk 0:02:41]} 12. h3 {[%clk 0:02:49]}  Bd7 {[%clk 0:02:35]} 13. Nbc3 {[%clk 0:02:47]}  Ne8 {[%clk 0:02:29]} 14. Rae1 {[%clk 0:02:43]}  f5 {[%clk 0:02:29]} 15. f4 {[%clk 0:02:38]}  Rb8 {[%clk 0:01:54]} 16. Nd5 {[%clk 0:02:29]}  Qd8 {[%clk 0:01:53]} 17. b4 {[%clk 0:02:29]}  axb4 {[%clk 0:01:52]} 18. axb4 {[%clk 0:02:30]}  b5 {[%clk 0:01:50]} 19. Bc3 {[%clk 0:02:09]}  Kh8 {[%clk 0:01:38]} 20. Qb2 {[%clk 0:01:56]}  bxc4 {[%clk 0:01:07]} 21. dxc4 {[%clk 0:01:55]}  Na5 {[%clk 0:01:07]} 22. Qa2 {[%clk 0:01:42]}  Nb7 {[%clk 0:00:55]} 23. e4 {[%clk 0:01:33]}  c6 {[%clk 0:00:49]} 24. Ne3 {[%clk 0:01:27]}  Qb6 {[%clk 0:00:49]} 25. Nc1 {[%clk 0:01:17]}  fxe4 {[%clk 0:00:49]} 26. fxe5 {[%clk 0:01:11]}  Rxf1+ {[%clk 0:00:48]} 27. Bxf1 {[%clk 0:01:11]}  Be6 {[%clk 0:00:39]} 28. Qb2 {[%clk 0:01:06]}  d5 {[%clk 0:00:34]} 29. Nb3 {[%clk 0:00:54]}  dxc4 {[%clk 0:00:27]} 30. Nd4 {[%clk 0:00:54]}  Bd5 {[%clk 0:00:26]} 31. Bxc4 {[%clk 0:00:49]}  Nc7 {[%clk 0:00:22]} 32. Kh2 {[%clk 0:00:44]}  Nd8 {[%clk 0:00:22]} 33. Qe2 {[%clk 0:00:37]}  Bxe5 {[%clk 0:00:21]} 34. Rd1 {[%clk 0:00:31]}  Nce6 {[%clk 0:00:14]} 35. Nxe6 {[%clk 0:00:27]}  Bxc3 {[%clk 0:00:14]} 36. Ng5 {[%clk 0:00:18]}  Bxc4 {[%clk 0:00:10]} 37. Nxc4 {[%clk 0:00:16]}  Qb5 {[%clk 0:00:10]} 38. Nxe4 {[%clk 0:00:14]}  Bg7 {[%clk 0:00:06]} 39. Ned6 {[%clk 0:00:12]}  Qxb4 {[%clk 0:00:06]} 40. Qe8+ {[%clk 0:00:11]} 1-0


[Site "https://www.chess.com"]

[Event "Titled Tuesday Blitz January 03 Late 2023"]
[White "Suvorov, Luca"]
[Black "qiaohu_henry"]
[WhiteFideId "12977071"]
[WhiteElo "2310"]
[BlackElo "2253"]
[Result "1-0"]
[Round "08"]
[TimeControl "180+2"]
[Date "2023.01.03"]
[WhiteClock "0:00:15"]
[BlackClock "0:00:02"]

1. d4 {[%clk 0:03:00]}  e6 {[%clk 0:03:00]} 2. c4 {[%clk 0:02:59]}  d5 {[%clk 0:03:00]} 3. Nf3 {[%clk 0:02:51]}  Nf6 {[%clk 0:03:00]} 4. Bg5 {[%clk 0:02:50]}  c6 {[%clk 0:03:00]} 5. Nc3 {[%clk 0:02:49]}  Nbd7 {[%clk 0:02:59]} 6. e3 {[%clk 0:02:49]}  Qa5 {[%clk 0:02:59]} 7. cxd5 {[%clk 0:02:43]}  Nxd5 {[%clk 0:02:59]} 8. Qb3 {[%clk 0:02:22]}  c5 {[%clk 0:02:17]} 9. dxc5 {[%clk 0:02:14]}  Bxc5 {[%clk 0:02:13]} 10. Bb5 {[%clk 0:02:00]}  Nxc3 {[%clk 0:02:01]} 11. bxc3 {[%clk 0:01:59]}  a6 {[%clk 0:01:55]} 12. Bd3 {[%clk 0:01:54]}  h6 {[%clk 0:01:46]} 13. Bh4 {[%clk 0:01:52]}  Be7 {[%clk 0:01:21]} 14. Bxe7 {[%clk 0:01:50]}  Kxe7 {[%clk 0:01:22]} 15. O-O {[%clk 0:01:40]}  Nc5 {[%clk 0:01:22]} 16. Qc2 {[%clk 0:01:40]}  Nxd3 {[%clk 0:01:21]} 17. Qxd3 {[%clk 0:01:41]}  Rd8 {[%clk 0:01:17]} 18. Qc4 {[%clk 0:01:38]}  Bd7 {[%clk 0:01:03]} 19. Rfd1 {[%clk 0:01:34]}  Bc6 {[%clk 0:00:43]} 20. Qh4+ {[%clk 0:01:25]}  f6 {[%clk 0:00:37]} 21. Qg4 {[%clk 0:01:17]}  Kf7 {[%clk 0:00:34]} 22. Nd4 {[%clk 0:01:17]}  Bd7 {[%clk 0:00:25]} 23. Rab1 {[%clk 0:01:10]}  b5 {[%clk 0:00:24]} 24. Nb3 {[%clk 0:00:42]}  Qc7 {[%clk 0:00:19]} 25. Qh5+ {[%clk 0:00:40]}  Kg8 {[%clk 0:00:19]} 26. Nc5 {[%clk 0:00:40]}  Be8 {[%clk 0:00:11]} 27. Nxe6 {[%clk 0:00:35]}  Qxc3 {[%clk 0:00:11]} 28. Qg4 {[%clk 0:00:32]}  Rxd1+ {[%clk 0:00:10]} 29. Rxd1 {[%clk 0:00:33]}  g6 {[%clk 0:00:06]} 30. Nd4 {[%clk 0:00:28]}  Qc5 {[%clk 0:00:03]} 31. Qe6+ {[%clk 0:00:27]}  Bf7 {[%clk 0:00:04]} 32. Qxf6 {[%clk 0:00:28]}  Rc8 {[%clk 0:00:04]} 33. h4 {[%clk 0:00:27]}  Qh5 {[%clk 0:00:04]} 34. Nf3 {[%clk 0:00:25]}  Qf5 {[%clk 0:00:03]} 35. Qxa6 {[%clk 0:00:23]}  Bxa2 {[%clk 0:00:03]} 36. Nd4 {[%clk 0:00:20]}  Qf7 {[%clk 0:00:02]} 37. Qxc8+ {[%clk 0:00:20]}  Kg7 {[%clk 0:00:02]} 38. Nxb5 {[%clk 0:00:19]}  Be6 {[%clk 0:00:01]} 39. Qc7 {[%clk 0:00:18]}  Qxc7 {[%clk 0:00:01]} 40. Nxc7 {[%clk 0:00:19]}  Bf7 {[%clk 0:00:01]} 41. Rd7 {[%clk 0:00:16]}  Kf6 {[%clk 0:00:02]} 42. Rd6+ {[%clk 0:00:16]}  Ke7 {[%clk 0:00:02]} 43. Rd4 {[%clk 0:00:15]} 1-0


[Site "https://www.chess.com"]

[Event "Titled Tuesday Blitz January 03 Late 2023"]
[White "Liu, Casper"]
[Black "Wang, Alexander J"]
[WhiteFideId "1454153"]
[BlackFideId "30955270"]
[WhiteElo "2278"]
[BlackElo "1815"]
[Result "0-1"]
[Round "08"]
[TimeControl "180+2"]
[Date "2023.01.03"]
[WhiteClock "0:00:00"]
[BlackClock "0:00:26"]

1. a3 {[%clk 0:02:55]}  d5 {[%clk 0:02:59]} 2. d4 {[%clk 0:02:49]}  Nf6 {[%clk 0:02:57]} 3. Nf3 {[%clk 0:02:49]}  e6 {[%clk 0:02:56]} 4. Bf4 {[%clk 0:02:43]}  c5 {[%clk 0:02:49]} 5. e3 {[%clk 0:02:42]}  Nc6 {[%clk 0:02:48]} 6. Nc3 {[%clk 0:02:42]}  c4 {[%clk 0:02:41]} 7. b3 {[%clk 0:02:15]}  b5 {[%clk 0:02:22]} 8. Be2 {[%clk 0:01:52]}  a6 {[%clk 0:01:55]} 9. O-O {[%clk 0:01:52]}  Bb7 {[%clk 0:01:52]} 10. bxc4 {[%clk 0:01:44]}  dxc4 {[%clk 0:01:45]} 11. e4 {[%clk 0:01:39]}  Ne7 {[%clk 0:01:33]} 12. Ne5 {[%clk 0:01:02]}  Nxe4 {[%clk 0:01:20]} 13. Nxe4 {[%clk 0:01:00]}  Bxe4 {[%clk 0:01:21]} 14. Bf3 {[%clk 0:00:58]}  Bxf3 {[%clk 0:01:09]} 15. Qxf3 {[%clk 0:00:59]}  Qd5 {[%clk 0:01:06]} 16. a4 {[%clk 0:00:15]}  Qxf3 {[%clk 0:00:53]} 17. gxf3 {[%clk 0:00:15]}  f6 {[%clk 0:00:47]} 18. Ng4 {[%clk 0:00:14]}  Nd5 {[%clk 0:00:46]} 19. Bd2 {[%clk 0:00:13]}  b4 {[%clk 0:00:41]} 20. Ne3 {[%clk 0:00:13]}  Rc8 {[%clk 0:00:36]} 21. Nxd5 {[%clk 0:00:13]}  exd5 {[%clk 0:00:35]} 22. Rfe1+ {[%clk 0:00:14]}  Kf7 {[%clk 0:00:35]} 23. c3 {[%clk 0:00:12]}  b3 {[%clk 0:00:34]} 24. f4 {[%clk 0:00:10]}  Bd6 {[%clk 0:00:33]} 25. f5 {[%clk 0:00:08]}  Rhe8 {[%clk 0:00:33]} 26. Be3 {[%clk 0:00:09]}  g6 {[%clk 0:00:32]} 27. fxg6+ {[%clk 0:00:06]}  Kxg6 {[%clk 0:00:33]} 28. f4 {[%clk 0:00:05]}  Kf5 {[%clk 0:00:33]} 29. Kg2 {[%clk 0:00:05]}  Rg8+ {[%clk 0:00:32]} 30. Kf3 {[%clk 0:00:05]}  Rce8 {[%clk 0:00:31]} 31. Bd2 {[%clk 0:00:04]}  Re4 {[%clk 0:00:27]} 32. Rxe4 {[%clk 0:00:01]}  dxe4+ {[%clk 0:00:28]} 33. Ke2 {[%clk 0:00:01]}  Rg2+ {[%clk 0:00:26]} 34. Kd1 {[%clk 0:00:00]}  Bxf4 {[%clk 0:00:26]} 0-1


[Site "https://www.chess.com"]

[Event "Titled Tuesday Blitz January 03 Late 2023"]
[White "Hoffmann, Asa"]
[Black "Sloan, Julia Elizabeth"]
[WhiteFideId "2001470"]
[BlackFideId "2018950"]
[WhiteElo "2185"]
[BlackElo "2087"]
[Result "1-0"]
[Round "08"]
[TimeControl "180+2"]
[Date "2023.01.03"]
[WhiteClock "0:01:46"]
[BlackClock "0:02:03"]

1. d4 {[%clk 0:02:56]}  Nf6 {[%clk 0:02:58]} 2. Bg5 {[%clk 0:02:54]}  e6 {[%clk 0:02:58]} 3. Nd2 {[%clk 0:02:52]}  h6 {[%clk 0:02:56]} 4. Bh4 {[%clk 0:02:51]}  d5 {[%clk 0:02:55]} 5. e3 {[%clk 0:02:51]}  b6 {[%clk 0:02:55]} 6. f4 {[%clk 0:02:49]}  Bb7 {[%clk 0:02:54]} 7. Ngf3 {[%clk 0:02:48]}  Be7 {[%clk 0:02:53]} 8. Bd3 {[%clk 0:02:48]}  O-O {[%clk 0:02:51]} 9. O-O {[%clk 0:02:47]}  Ne4 {[%clk 0:02:49]} 10. Bxe7 {[%clk 0:02:44]}  Qxe7 {[%clk 0:02:49]} 11. Bxe4 {[%clk 0:02:44]}  dxe4 {[%clk 0:02:48]} 12. Ne5 {[%clk 0:02:43]}  Nd7 {[%clk 0:02:46]} 13. c3 {[%clk 0:02:42]}  Qd6 {[%clk 0:02:42]} 14. Qh5 {[%clk 0:02:36]}  b5 {[%clk 0:02:31]} 15. Rad1 {[%clk 0:02:30]}  f5 {[%clk 0:02:30]} 16. g4 {[%clk 0:02:28]}  Nf6 {[%clk 0:02:29]} 17. Qh4 {[%clk 0:02:26]}  Nd5 {[%clk 0:02:26]} 18. Rde1 {[%clk 0:02:15]}  fxg4 {[%clk 0:02:15]} 19. Qxg4 {[%clk 0:02:13]}  Nf6 {[%clk 0:02:15]} 20. Qg6 {[%clk 0:02:06]}  Rae8 {[%clk 0:02:13]} 21. Kh1 {[%clk 0:02:06]}  Qd5 {[%clk 0:02:12]} 22. Rg1 {[%clk 0:02:04]}  Re7 {[%clk 0:02:09]} 23. Qxh6 {[%clk 0:01:59]}  Nd7 {[%clk 0:02:09]} 24. Qh4 {[%clk 0:01:52]}  Rfe8 {[%clk 0:02:04]} 25. Ng6 {[%clk 0:01:47]}  Rf7 {[%clk 0:02:03]} 26. Qh8# {[%clk 0:01:46]} 1-0


[Site "https://www.chess.com"]

[Event "Titled Tuesday Blitz January 03 Late 2023"]
[White "Eisa Mohmood, Alkhoori"]
[Black "Gomes, Luiz Alexandre de Souza"]
[WhiteFideId "9316116"]
[BlackFideId "2102790"]
[WhiteElo "1095"]
[BlackElo "2254"]
[Result "0-1"]
[Round "08"]
[TimeControl "180+2"]
[Date "2023.01.03"]
[WhiteClock "0:00:02"]
[BlackClock "0:00:11"]

1. e4 {[%clk 0:02:57]}  c5 {[%clk 0:02:59]} 2. Nf3 {[%clk 0:02:57]}  d6 {[%clk 0:03:00]} 3. d4 {[%clk 0:02:58]}  cxd4 {[%clk 0:03:00]} 4. Nxd4 {[%clk 0:02:59]}  Nf6 {[%clk 0:03:01]} 5. Nc3 {[%clk 0:02:59]}  a6 {[%clk 0:03:01]} 6. Bg5 {[%clk 0:02:59]}  e6 {[%clk 0:03:01]} 7. f4 {[%clk 0:02:59]}  Be7 {[%clk 0:03:01]} 8. Qf3 {[%clk 0:03:00]}  Nbd7 {[%clk 0:03:01]} 9. O-O-O {[%clk 0:03:00]}  Qc7 {[%clk 0:03:01]} 10. g4 {[%clk 0:03:00]}  h6 {[%clk 0:03:01]} 11. Bxf6 {[%clk 0:03:00]}  Nxf6 {[%clk 0:03:00]} 12. h4 {[%clk 0:02:59]}  Nd7 {[%clk 0:02:58]} 13. g5 {[%clk 0:02:58]}  b5 {[%clk 0:02:52]} 14. g6 {[%clk 0:02:57]}  Nc5 {[%clk 0:02:40]} 15. gxf7+ {[%clk 0:02:55]}  Kxf7 {[%clk 0:02:41]} 16. f5 {[%clk 0:02:48]}  Bf6 {[%clk 0:02:25]} 17. fxe6+ {[%clk 0:02:43]}  Nxe6 {[%clk 0:02:20]} 18. e5 {[%clk 0:02:19]}  dxe5 {[%clk 0:02:13]} 19. Qxa8 {[%clk 0:02:02]}  Nxd4 {[%clk 0:01:59]} 20. Bh3 {[%clk 0:01:59]}  Bxh3 {[%clk 0:01:29]} 21. Qxh8 {[%clk 0:01:57]}  Bf5 {[%clk 0:01:20]} 22. Rd2 {[%clk 0:01:38]}  b4 {[%clk 0:01:14]} 23. Nd5 {[%clk 0:01:34]}  Qc6 {[%clk 0:01:14]} 24. Rf1 {[%clk 0:01:14]}  Qxd5 {[%clk 0:01:08]} 25. Rxf5 {[%clk 0:01:14]}  Qh1+ {[%clk 0:00:54]} 26. Rd1 {[%clk 0:01:14]}  Qxh4 {[%clk 0:00:54]} 27. Rff1 {[%clk 0:00:51]}  Qe4 {[%clk 0:00:34]} 28. Qc8 {[%clk 0:00:47]}  Kg6 {[%clk 0:00:31]} 29. Rg1+ {[%clk 0:00:46]}  Kh7 {[%clk 0:00:31]} 30. Kb1 {[%clk 0:00:42]}  a5 {[%clk 0:00:29]} 31. Qc4 {[%clk 0:00:40]}  a4 {[%clk 0:00:17]} 32. Qd3 {[%clk 0:00:38]}  Qxd3 {[%clk 0:00:18]} 33. Rxd3 {[%clk 0:00:37]}  h5 {[%clk 0:00:18]} 34. c3 {[%clk 0:00:25]}  bxc3 {[%clk 0:00:17]} 35. bxc3 {[%clk 0:00:26]}  Ne2 {[%clk 0:00:18]} 36. Rh1 {[%clk 0:00:21]}  h4 {[%clk 0:00:18]} 37. Rh2 {[%clk 0:00:14]}  Nf4 {[%clk 0:00:16]} 38. Rdd2 {[%clk 0:00:12]}  e4 {[%clk 0:00:15]} 39. Rde2 {[%clk 0:00:10]}  Nxe2 {[%clk 0:00:13]} 40. Rxe2 {[%clk 0:00:09]}  Bxc3 {[%clk 0:00:13]} 41. Rxe4 {[%clk 0:00:06]}  Bf6 {[%clk 0:00:13]} 42. Rxa4 {[%clk 0:00:04]}  h3 {[%clk 0:00:14]} 43. Ra3 {[%clk 0:00:05]}  Kg6 {[%clk 0:00:10]} 44. Rxh3 {[%clk 0:00:06]}  Kf5 {[%clk 0:00:10]} 45. Kc2 {[%clk 0:00:03]}  g5 {[%clk 0:00:10]} 46. Kd3 {[%clk 0:00:02]}  g4 {[%clk 0:00:11]} 0-1


[Site "https://www.chess.com"]

[Event "Titled Tuesday Blitz January 03 Late 2023"]
[White "Ankerst, Mihael"]
[Black "Le Goff, Ronan"]
[WhiteFideId "14602369"]
[BlackFideId "612073"]
[WhiteElo "2370"]
[BlackElo "2320"]
[Result "0-1"]
[Round "08"]
[TimeControl "180+2"]
[Date "2023.01.03"]
[WhiteClock "0:00:03"]
[BlackClock "0:01:32"]

1. e4 {[%clk 0:00:31]}  Nf6 {[%clk 0:03:00]} 2. e5 {[%clk 0:00:30]}  Nd5 {[%clk 0:03:00]} 3. d4 {[%clk 0:00:31]}  d6 {[%clk 0:02:57]} 4. f4 {[%clk 0:00:30]}  Bf5 {[%clk 0:02:56]} 5. Nf3 {[%clk 0:00:27]}  e6 {[%clk 0:02:55]} 6. Bd3 {[%clk 0:00:28]}  Bxd3 {[%clk 0:02:52]} 7. Qxd3 {[%clk 0:00:29]}  Nc6 {[%clk 0:02:52]} 8. c3 {[%clk 0:00:29]}  Be7 {[%clk 0:02:49]} 9. O-O {[%clk 0:00:29]}  Qd7 {[%clk 0:02:49]} 10. b4 {[%clk 0:00:26]}  a6 {[%clk 0:02:49]} 11. a4 {[%clk 0:00:26]}  Rd8 {[%clk 0:02:47]} 12. Qe2 {[%clk 0:00:24]}  O-O {[%clk 0:02:46]} 13. Kh1 {[%clk 0:00:23]}  f6 {[%clk 0:02:45]} 14. Bd2 {[%clk 0:00:17]}  fxe5 {[%clk 0:02:44]} 15. b5 {[%clk 0:00:18]}  axb5 {[%clk 0:02:43]} 16. axb5 {[%clk 0:00:18]}  Nb8 {[%clk 0:02:36]} 17. fxe5 {[%clk 0:00:19]}  Rf5 {[%clk 0:02:09]} 18. Na3 {[%clk 0:00:18]}  Rdf8 {[%clk 0:02:05]} 19. Nc2 {[%clk 0:00:17]}  Nf4 {[%clk 0:02:00]} 20. Qe4 {[%clk 0:00:16]}  d5 {[%clk 0:01:58]} 21. Qe3 {[%clk 0:00:15]}  Qxb5 {[%clk 0:01:57]} 22. Rfb1 {[%clk 0:00:15]}  Qc6 {[%clk 0:01:54]} 23. Qg1 {[%clk 0:00:12]}  Rh5 {[%clk 0:01:52]} 24. Ne3 {[%clk 0:00:11]}  b6 {[%clk 0:01:48]} 25. Qf2 {[%clk 0:00:12]}  Qe8 {[%clk 0:01:45]} 26. Qg3 {[%clk 0:00:12]}  Ne2 {[%clk 0:01:43]} 27. Qf2 {[%clk 0:00:12]}  Nf4 {[%clk 0:01:43]} 28. Qg3 {[%clk 0:00:12]}  Kh8 {[%clk 0:01:44]} 29. Ng4 {[%clk 0:00:12]}  Ng6 {[%clk 0:01:42]} 30. h3 {[%clk 0:00:11]}  Nd7 {[%clk 0:01:41]} 31. Ne3 {[%clk 0:00:10]}  Nh4 {[%clk 0:01:39]} 32. Nh2 {[%clk 0:00:10]}  Nf5 {[%clk 0:01:38]} 33. Neg4 {[%clk 0:00:09]}  Nxg3+ {[%clk 0:01:38]} 34. Kg1 {[%clk 0:00:05]}  Rhf5 {[%clk 0:01:35]} 35. Nf3 {[%clk 0:00:05]}  Rxf3 {[%clk 0:01:35]} 36. gxf3 {[%clk 0:00:05]}  Rxf3 {[%clk 0:01:35]} 37. Kg2 {[%clk 0:00:06]}  Rd3 {[%clk 0:01:35]} 38. Bf4 {[%clk 0:00:05]}  Nh5 {[%clk 0:01:34]} 39. Bh2 {[%clk 0:00:04]}  h6 {[%clk 0:01:34]} 40. Rf1 {[%clk 0:00:03]}  Bg5 {[%clk 0:01:34]} 41. Rf2 {[%clk 0:00:03]}  Rxc3 {[%clk 0:01:32]} 42. Ra7 {[%clk 0:00:03]}  c5 {[%clk 0:01:32]} 43. Rb7 {[%clk 0:00:03]}  cxd4 {[%clk 0:01:32]} 0-1


[Site "https://www.chess.com"]

[Event "Titled Tuesday Blitz January 03 Late 2023"]
[White "Papayan, Oleg"]
[Black "Liu, Kelsey"]
[WhiteFideId "4193911"]
[BlackFideId "30944481"]
[WhiteElo "2253"]
[BlackElo "2065"]
[Result "1-0"]
[Round "08"]
[TimeControl "180+2"]
[Date "2023.01.03"]
[WhiteClock "0:00:02"]
[BlackClock "0:00:10"]

1. d4 {[%clk 0:03:00]}  Nf6 {[%clk 0:02:59]} 2. Nf3 {[%clk 0:02:58]}  e6 {[%clk 0:02:58]} 3. Bf4 {[%clk 0:02:55]}  c5 {[%clk 0:02:50]} 4. c3 {[%clk 0:02:45]}  Nc6 {[%clk 0:02:48]} 5. e3 {[%clk 0:02:44]}  Be7 {[%clk 0:02:47]} 6. Bd3 {[%clk 0:02:42]}  O-O {[%clk 0:02:46]} 7. Nbd2 {[%clk 0:02:42]}  d6 {[%clk 0:02:46]} 8. h3 {[%clk 0:02:32]}  Re8 {[%clk 0:02:45]} 9. Bh2 {[%clk 0:02:32]}  e5 {[%clk 0:02:30]} 10. O-O {[%clk 0:02:16]}  Bf8 {[%clk 0:02:19]} 11. Qc2 {[%clk 0:01:56]}  cxd4 {[%clk 0:02:18]} 12. exd4 {[%clk 0:01:56]}  Bd7 {[%clk 0:02:17]} 13. Rfe1 {[%clk 0:01:48]}  exd4 {[%clk 0:01:50]} 14. Nxd4 {[%clk 0:01:48]}  Rc8 {[%clk 0:01:47]} 15. N2b3 {[%clk 0:00:53]}  Nb4 {[%clk 0:01:46]} 16. Qd2 {[%clk 0:00:53]}  Nxd3 {[%clk 0:01:47]} 17. Qxd3 {[%clk 0:00:54]}  a6 {[%clk 0:01:31]} 18. Nf5 {[%clk 0:00:51]}  d5 {[%clk 0:01:29]} 19. Nbd4 {[%clk 0:00:39]}  Ne4 {[%clk 0:01:25]} 20. Ng3 {[%clk 0:00:34]}  Nc5 {[%clk 0:01:17]} 21. Qf3 {[%clk 0:00:33]}  Bc6 {[%clk 0:01:10]} 22. Ngf5 {[%clk 0:00:28]}  Ne4 {[%clk 0:01:04]} 23. Qg4 {[%clk 0:00:23]}  Kh8 {[%clk 0:01:00]} 24. h4 {[%clk 0:00:16]}  Bd7 {[%clk 0:00:59]} 25. Qf3 {[%clk 0:00:10]}  Nd2 {[%clk 0:00:55]} 26. Qd3 {[%clk 0:00:09]}  Ne4 {[%clk 0:00:54]} 27. h5 {[%clk 0:00:10]}  Qg5 {[%clk 0:00:43]} 28. Ng3 {[%clk 0:00:04]}  Nxg3 {[%clk 0:00:41]} 29. Bxg3 {[%clk 0:00:05]}  Qxh5 {[%clk 0:00:41]} 30. Qf3 {[%clk 0:00:02]}  Bg4 {[%clk 0:00:34]} 31. Qf4 {[%clk 0:00:02]}  Rcd8 {[%clk 0:00:26]} 32. f3 {[%clk 0:00:02]}  Be6 {[%clk 0:00:20]} 33. Qc7 {[%clk 0:00:03]}  Rd7 {[%clk 0:00:19]} 34. Qe5 {[%clk 0:00:02]}  Bd6 {[%clk 0:00:18]} 35. Qxh5 {[%clk 0:00:02]}  Bxg3 {[%clk 0:00:17]} 36. Re2 {[%clk 0:00:03]}  Rde7 {[%clk 0:00:12]} 37. Nxe6 {[%clk 0:00:03]}  fxe6 {[%clk 0:00:11]} 38. Rd1 {[%clk 0:00:02]}  g6 {[%clk 0:00:10]} 39. Qg4 {[%clk 0:00:02]}  Be5 {[%clk 0:00:10]} 40. Rxe5 {[%clk 0:00:02]} 1-0


[Site "https://www.chess.com"]